bitfinex-derivatives/quotes_SOLF0:USTF0_20241012
["timestamp","ask_amount","ask_price","bid_price","bid_amount"]
[1728720634834,8.44,145.71,145.68,8.44]
[1728720636939,16.5321,145.72,145.68,8.44]
[1728720637140,4.66,145.72,145.68,8.44]
[1728720642235,4.66,145.72,145.66,4.1328]
[1728720642236,4.66,145.72,145.67,8.44]
[1728720653848,0.12502,145.73,145.67,8.44]
[1728720654050,4.78502,145.73,145.67,8.44]
[1728720654651,13.22502,145.73,145.66,12.5728]
[1728720658647,8.44,145.72,145.66,4.1328]
[1728720659757,8.44,145.7,145.66,4.1328]
[1728720663351,8.44,145.72,145.66,4.1328]
[1728720667762,16.65692,145.73,145.66,4.1328]
[1728720669564,8.21692,145.73,145.67,8.44]
[1728720674975,16.65692,145.73,145.67,8.44]
[1728720678575,8.21692,145.73,145.67,8.44]
[1728720678771,16.65692,145.73,145.67,8.44]
[1728720681279,11.99692,145.73,145.67,8.44]
[1728720681479,4.66,145.72,145.67,8.44]
[1728720694686,0.12502,145.73,145.68,8.44]
[1728720694890,4.66,145.72,145.68,8.44]
[1728720696294,0.12502,145.73,145.7,8.44]
[1728720696588,4.78502,145.73,145.7,8.44]
[1728720696893,0.12502,145.73,145.7,8.44]
[1728720702096,0.12502,145.73,145.71,8.44]
[1728720704302,0.12502,145.73,145.68,4.66]
[1728720704507,0.12502,145.73,145.68,13.1]
[1728720704994,8.44,145.72,145.68,4.66]
[1728720705390,8.56502,145.73,145.68,8.44]
[1728720705593,13.22502,145.73,145.68,8.44]
[1728720710600,13.22502,145.73,145.66,4.1328]
[1728720710800,13.22502,145.73,145.68,8.44]
[1728720711103,8.44,145.72,145.66,12.5728]
[1728720711293,8.44,145.72,145.66,4.1328]
[1728720711498,8.44,145.72,145.67,8.44]
[1728720712504,8.44,145.72,145.68,8.44]
[1728720713903,4.78502,145.73,145.69,8.44]
[1728720728013,13.22502,145.73,145.66,4.1328]
[1728720728213,13.22502,145.73,145.67,8.44]
[1728720730312,13.22502,145.73,145.68,8.44]
[1728720735016,4.78502,145.73,145.69,8.44]
[1728720741631,4.78502,145.73,145.68,8.44]
[1728720748047,0.12502,145.73,145.68,8.44]
[1728720750350,0.12502,145.73,145.66,4.1328]
[1728720750547,0.12502,145.73,145.67,8.44]
[1728720758845,8.56502,145.73,145.66,12.5728]
[1728720762859,4.66,145.72,145.66,12.5728]
[1728720763548,4.66,145.72,145.67,8.44]
[1728720777165,4.66,145.72,145.66,4.1328]
[1728720777365,4.66,145.72,145.67,8.44]
[1728720781662,13.22502,145.73,145.67,8.44]
[1728720794575,13.22502,145.73,145.68,8.44]
[1728720798186,8.56502,145.73,145.68,8.44]
[1728720798385,4.78502,145.73,145.68,8.44]
[1728720799086,0.12502,145.73,145.69,8.44]
[1728720799288,0.12502,145.73,145.71,8.44]
[1728720799585,0.12502,145.73,145.72,8.44]
[1728720802986,88.58779778,145.78,145.72,8.44]
[1728720803182,88.58779778,145.78,145.74,8.44]
[1728720804783,83.92779778,145.78,145.74,8.44]
[1728720805086,88.58779778,145.78,145.74,8.44]
[1728720806984,83.92779778,145.78,145.74,8.44]
[1728720821307,92.36779778,145.78,145.73,11.92934677]
[1728720824008,8.44,145.78,145.73,11.92934677]
[1728720824808,0.12502,145.79,145.73,11.92934677]
[1728720825204,8.44,145.78,145.73,11.92934677]
[1728720825407,0.12502,145.79,145.74,8.44]
[1728720825612,8.56502,145.79,145.74,8.44]
[1728720825812,8.56502,145.79,145.74,66.70307123]
[1728720827705,8.56502,145.79,145.74,8.44]
[1728720838716,0.12502,145.79,145.76,8.44]
[1728720839111,0.12502,145.79,145.75,3.35503614]
[1728720839112,8.56502,145.79,145.75,3.35503614]
[1728720839316,8.56502,145.79,145.74,8.44]
[1728720839617,8.56502,145.79,145.74,11.88421109]
[1728720840316,0.12502,145.79,145.75,8.44]
[1728720841111,0.12502,145.79,145.76,3.38545061]
[1728720841707,0.12502,145.79,145.74,8.44]
[1728720843316,0.12502,145.79,145.73,64.2099861]
[1728720843516,0.12502,145.79,145.74,8.44]
[1728720848216,0.12502,145.79,145.73,64.2099861]
[1728720848421,0.12502,145.79,145.75,8.44]
[1728720861936,0.12502,145.79,145.76,8.44]
[1728720864835,0.12502,145.79,145.74,1.322]
[1728720865037,0.12502,145.79,145.76,8.44]
[1728720882354,4.64,145.82,145.77,8.44]
[1728720882559,13.08,145.82,145.77,8.44]
[1728720883863,13.08,145.82,145.75,1.3245]
[1728720884055,13.08,145.82,145.77,8.44]
[1728720887757,8.44,145.81,145.77,8.44]
[1728720888061,8.44,145.79,145.75,11.1134]
[1728720888663,8.44,145.8,145.76,8.44]
[1728720892673,4.64,145.82,145.77,8.44]
[1728720892869,13.08,145.82,145.77,8.44]
[1728720893972,4.64,145.82,145.77,8.44]
[1728720894174,13.08,145.82,145.77,8.44]
[1728720895871,91.95104505,145.84,145.79,8.44]
[1728720895872,88.52174505,145.84,145.79,8.44]
[1728720896171,4.64,145.83,145.79,8.44]
[1728720897170,4.64,145.83,145.8,5.08329476]
[1728720897375,4.64,145.83,145.81,5.08329476]
[1728720897571,4.64,145.83,145.82,5.08329476]
[1728720898171,4.64,145.83,145.79,8.44]
[1728720898567,4.64,145.83,145.8,5.08333024]
[1728720898768,4.64,145.83,145.81,5.08333024]
[1728720898970,4.64,145.83,145.82,5.08333024]
[1728720899980,13.08,145.83,145.82,5.08333024]
[1728720902677,13.08,145.83,145.76,13.08]
[1728720902879,13.08,145.83,145.77,5.08233579]
[1728720903075,13.08,145.83,145.78,5.08233579]
[1728720903282,13.08,145.83,145.79,5.08233579]
[1728720903484,13.08,145.83,145.8,5.08233579]
[1728720903782,13.08,145.83,145.81,5.08233579]
[1728720903980,13.08,145.83,145.82,5.08233579]
[1728720904685,13.08,145.83,145.76,13.08]
[1728720904985,13.08,145.83,145.77,5.0807491]
[1728720905177,13.08,145.83,145.78,5.0807491]
[1728720905379,13.08,145.83,145.79,5.0807491]
[1728720905580,13.08,145.83,145.8,5.0807491]
[1728720905786,13.08,145.83,145.81,5.0807491]
[1728720906084,13.08,145.83,145.82,5.0807491]
[1728720908680,13.08,145.83,145.76,13.08]
[1728720909180,13.08,145.83,145.77,5.08186246]
[1728720909685,13.08,145.83,145.78,5.08186246]
[1728720909880,13.08,145.83,145.79,5.08186246]
[1728720910082,13.08,145.83,145.8,5.08186246]
[1728720910281,13.08,145.83,145.76,13.08]
[1728720910282,13.08,145.83,145.81,5.08186246]
[1728720910488,13.08,145.83,145.82,5.08186246]
[1728720912395,13.08,145.83,145.76,13.08]
[1728720912592,13.08,145.83,145.77,5.08168624]
[1728720912787,13.08,145.83,145.78,5.08168624]
[1728720913089,13.08,145.83,145.79,5.08168624]
[1728720913290,13.08,145.83,145.8,5.08168624]
[1728720913478,13.08,145.83,145.81,5.08168624]
[1728720913677,13.08,145.83,145.82,5.08168624]
[1728720920292,4.64,145.83,145.82,5.08168624]
[1728720920590,13.08,145.83,145.82,5.08168624]
[1728720923692,13.08,145.83,145.78,8.44]
[1728720923897,13.08,145.83,145.79,5.0829671]
[1728720924092,13.08,145.83,145.8,5.0829671]
[1728720924395,13.08,145.83,145.81,5.0829671]
[1728720924591,13.08,145.83,145.82,5.0829671]
[1728720931098,13.08,145.83,145.79,1.414]
[1728720931302,13.08,145.83,145.8,5.08491889]
[1728720931501,13.08,145.83,145.81,5.08491889]
[1728720931701,13.08,145.83,145.82,5.08491889]
[1728720934801,13.08,145.83,145.79,1.414]
[1728720935006,13.08,145.83,145.8,5.08436838]
[1728720935205,13.08,145.83,145.81,5.08436838]
[1728720935505,13.08,145.83,145.82,5.08436838]
[1728720946407,13.08,145.83,145.79,1.414]
[1728720946709,13.08,145.83,145.8,5.08518175]
[1728720946909,13.08,145.83,145.81,5.08518175]
[1728720947110,13.08,145.83,145.82,5.08518175]
[1728720947704,4.64,145.83,145.82,5.08518175]
[1728720950208,4.64,145.83,145.79,12.5134]
[1728720950407,4.64,145.83,145.82,5.08541665]
[1728720954116,11.8694,145.84,145.79,12.5134]
[1728720954311,16.5094,145.84,145.8,5.08574308]
[1728720954512,16.5094,145.84,145.81,5.08574308]
[1728720954712,16.5094,145.84,145.82,5.08574308]
[1728720954914,16.5094,145.84,145.83,5.08574308]
[1728720955515,8.0694,145.84,145.83,5.08574308]
[1728720955714,16.5094,145.84,145.83,5.08574308]
[1728720961428,13.08,145.84,145.79,1.414]
[1728720961630,8.44,145.8,145.79,1.414]
[1728720965322,11.8702,145.8,145.75,62.339272]
[1728720965525,11.8702,145.8,145.75,70.779272]
[1728720967520,3.4307,145.78,145.74,4.0705]
[1728720967730,8.44,145.79,145.74,4.0705]
[1728720968032,11.8705,145.79,145.74,4.0705]
[1728720968726,11.8705,145.79,145.74,12.5105]
[1728720970137,8.07,145.81,145.76,8.44]
[1728720970332,8.44,145.8,145.76,8.44]
[1728720970833,8.44,145.79,145.74,12.5105]
[1728720973529,8.44,145.79,145.75,5.02118943]
[1728720973730,8.44,145.79,145.74,12.5105]
[1728720973932,8.44,145.79,145.75,5.02118943]
[1728720974129,8.44,145.79,145.74,12.5105]
[1728720974331,8.44,145.79,145.76,5.02118943]
[1728720974532,8.44,145.79,145.75,5.02118943]
[1728720974730,8.44,145.79,145.77,5.02118943]
[1728720975029,8.44,145.79,145.78,5.02118943]
[1728720977235,8.44,145.79,145.75,8.44]
[1728720977438,8.44,145.79,145.76,5.02032988]
[1728720977834,8.44,145.79,145.77,5.02032988]
[1728720978141,8.44,145.79,145.78,5.02032988]
[1728720980637,8.44,145.79,145.75,8.44]
[1728720981040,8.44,145.79,145.78,5.01955134]
[1728720981840,8.44,145.8,145.78,5.01955134]
[1728720982037,8.44,145.8,145.79,5.01955134]
[1728720984043,8.44,145.8,145.79,5.01901424]
[1728720987248,11.8702,145.8,145.79,5.01901424]
[1728720990655,3.4309,145.77,145.74,1.3411]
[1728720990855,8.44,145.76,145.74,1.3411]
[1728720992443,4.64,145.77,145.74,1.3411]
[1728720992645,13.08,145.77,145.74,1.3411]
[1728720995652,8.44,145.76,145.73,0.12502]
[1728721000361,11.8712,145.76,145.73,0.12502]
[1728721003067,8.44,145.76,145.73,0.12502]
[1728721004062,8.44,145.75,145.73,0.12502]
[1728721010968,8.071,145.77,145.73,0.12502]
[1728721011169,8.44,145.75,145.73,0.12502]
[1728721012668,8.071,145.77,145.73,0.12502]
[1728721012866,8.44,145.75,145.73,0.12502]
[1728721015268,8.44,145.74,145.73,0.12502]
[1728721015470,13.08,145.74,145.73,0.12502]
[1728721017968,16.5116,145.74,145.73,0.12502]
[1728721023883,3.432,145.73,145.67,0.12502]
[1728721024174,8.44,145.68,145.67,0.12502]
[1728721033483,3.4328,145.69,145.67,0.12502]
[1728721033684,8.44,145.68,145.67,0.12502]
[1728721048297,11.873,145.68,145.67,0.12502]
[1728721049609,3.433,145.68,145.67,0.12502]
[1728721049792,11.873,145.68,145.67,0.12502]
[1728721062307,3.433,145.68,145.67,0.12502]
[1728721062607,11.873,145.68,145.67,0.12502]
[1728721066214,16.513,145.68,145.67,0.12502]
[1728721073227,8.073,145.68,145.67,0.12502]
[1728721073423,13.08,145.68,145.67,0.12502]
[1728721079426,4.64,145.68,145.67,0.12502]
[1728721079826,13.08,145.68,145.67,0.12502]
[1728721081627,4.64,145.68,145.67,0.12502]
[1728721081832,13.08,145.68,145.67,0.12502]
[1728721083426,4.64,145.68,145.67,0.12502]
[1728721083635,13.08,145.68,145.67,0.12502]
[1728721086032,4.64,145.68,145.67,0.12502]
[1728721086230,13.08,145.68,145.67,0.12502]
[1728721087734,16.513,145.68,145.67,0.12502]
[1728721091646,3.4335,145.66,145.62,4.106]
[1728721091942,8.44,145.64,145.62,4.106]
[1728721096633,8.44,145.65,145.62,4.106]
[1728721098646,11.8733,145.67,145.62,15.92829699]
[1728721101444,8.44,145.66,145.62,4.106]
[1728721101837,8.44,145.66,145.62,7.55777329]
[1728721104835,13.08,145.66,145.62,7.55777329]
[1728721108748,13.08,145.66,145.62,4.106]
[1728721109648,8.44,145.63,145.61,0.12502]
[1728721112250,8.44,145.62,145.61,0.12502]
[1728721112444,13.08,145.63,145.61,0.12502]
[1728721112845,4.64,145.63,145.61,0.12502]
[1728721113040,13.08,145.63,145.61,0.12502]
[1728721114053,4.64,145.63,145.61,0.12502]
[1728721114255,13.08,145.63,145.61,0.12502]
[1728721115154,4.64,145.63,145.61,0.12502]
[1728721115349,13.08,145.63,145.61,0.12502]
[1728721115655,4.64,145.64,145.61,0.12502]
[1728721116150,4.64,145.64,145.61,3.55952]
[1728721124551,3.4336,145.66,145.62,8.44]
[1728721124552,4.64,145.66,145.62,8.44]
[1728721124759,13.08,145.67,145.63,11.85813816]
[1728721125153,13.08,145.67,145.63,15.29223816]
[1728721126158,13.08,145.67,145.63,11.8741]
[1728721128657,13.08,145.67,145.64,3.4339]
[1728721141557,8.44,145.67,145.64,3.4339]
[1728721153784,8.0732,145.68,145.64,3.4339]
[1728721153981,16.5132,145.68,145.64,3.4339]
[1728721154185,16.5132,145.68,145.64,11.8739]
[1728721160188,8.0732,145.68,145.64,11.8739]
[1728721167496,3.4335,145.66,145.62,8.23127981]
[1728721167690,8.44,145.66,145.62,13.23697981]
[1728721167888,13.08,145.68,145.62,13.23697981]
[1728721169396,3.4334,145.67,145.63,3.4341]
[1728721170901,3.4334,145.67,145.63,11.8741]
[1728721180806,3.4334,145.67,145.63,3.4341]
[1728721185009,8.44,145.66,145.62,4.79697981]
[1728721185204,8.44,145.66,145.62,1.339]
[1728721185608,11.8735,145.66,145.62,8.17905215]
[1728721187016,3.4335,145.66,145.62,16.61905215]
[1728721187814,3.4333,145.67,145.62,16.61905215]
[1728721188418,16.5131,145.68,145.64,3.4339]
[1728721189227,92.12862564,145.69,145.65,3.4337]
[1728721189523,4.64,145.68,145.65,11.8737]
[1728721189718,92.12862564,145.69,145.65,11.8737]
[1728721190021,96.76862564,145.69,145.65,11.8737]
[1728721190418,0.12502,145.73,145.68,8.44]
[1728721190620,4.76502,145.73,145.7,8.44]
[1728721191119,4.76502,145.73,145.71,3.4323]
[1728721191416,4.76502,145.73,145.7,8.44]
[1728721191617,4.76502,145.73,145.7,11.8724]
[1728721191923,4.76502,145.73,145.71,8.44]
[1728721192217,4.76502,145.73,145.71,11.8723]
[1728721194720,0.12502,145.73,145.71,11.8723]
[1728721195118,0.12502,145.73,145.72,11.8721]
[1728721195319,88.67185067,145.75,145.72,8.44]
[1728721195619,4.76502,145.79,145.74,8.44]
[1728721195820,0.12502,145.79,145.77,8.44]
[1728721196026,4.76502,145.79,145.77,8.44]
[1728721196318,4.76502,145.79,145.77,11.8708]
[1728721197420,4.76502,145.79,145.78,8.44]
[1728721197421,0.12502,145.79,145.78,8.44]
[1728721199319,0.12502,145.79,145.76,11.85315566]
[1728721200118,0.12502,145.79,145.76,8.44]
[1728721200321,0.12502,145.79,145.75,13.08]
[1728721200623,0.12502,145.79,145.75,16.51154088]
[1728721201329,0.12502,145.79,145.77,8.44]
[1728721202020,0.12502,145.79,145.75,16.51154088]
[1728721202220,0.12502,145.79,145.75,13.08]
[1728721202610,0.12502,145.79,145.75,16.47620661]
[1728721204824,0.12502,145.79,145.76,8.44]
[1728721207928,0.12502,145.79,145.75,4.64]
[1728721208128,0.12502,145.79,145.76,8.44]
[1728721222041,3.55542,145.79,145.73,2.6983]
[1728721222237,3.55542,145.79,145.75,8.44]
[1728721230551,3.4307,145.78,145.73,11.1383]
[1728721230946,4.64,145.77,145.73,11.1383]
[1728721233260,4.64,145.77,145.74,8.44]
[1728721237563,4.64,145.77,145.73,11.1383]
[1728721243563,8.0709,145.77,145.73,11.1383]
[1728721244163,3.4312,145.76,145.73,2.6983]
[1728721244565,13.08,145.77,145.73,2.6983]
[1728721244764,16.511,145.77,145.73,2.6983]
[1728721246061,16.511,145.77,145.73,11.1383]
[1728721248465,16.511,145.77,145.73,2.6983]
[1728721248663,3.4312,145.76,145.73,2.6983]
[1728721251571,13.08,145.77,145.73,2.6983]
[1728721251773,16.511,145.77,145.73,2.6983]
[1728721252177,16.511,145.77,145.73,1.3496]
[1728721252866,3.4312,145.76,145.73,1.3496]
[1728721253671,11.8712,145.76,145.73,1.3496]
[1728721255673,3.4315,145.75,145.73,1.3496]
[1728721255973,11.8715,145.75,145.73,1.3496]
[1728721259373,8.44,145.75,145.73,1.3496]
[1728721273893,3.4312,145.76,145.73,1.3496]
[1728721274086,11.8712,145.76,145.73,1.3496]
[1728721277101,8.44,145.76,145.7,13.29490541]
[1728721277291,3.4314,145.75,145.7,9.8671]
[1728721278098,3.4314,145.75,145.7,13.30485898]
[1728721278799,3.4314,145.75,145.7,9.8671]
[1728721279101,3.4314,145.75,145.7,13.28735442]
[1728721280101,3.4314,145.75,145.7,9.8671]
[1728721280292,8.44,145.74,145.7,1.4271]
[1728721280499,8.44,145.72,145.69,1.3476]
[1728721280702,8.44,145.73,145.69,1.3476]
[1728721285502,8.44,145.72,145.69,1.3476]
[1728721289502,8.44,145.71,145.69,1.3476]
[1728721290993,8.44,145.71,145.68,1.3706]
[1728721291301,8.44,145.71,145.67,8.56502]
[1728721292205,8.44,145.71,145.67,0.12502]
[1728721294601,13.08,145.71,145.67,0.12502]
[1728721296105,13.08,145.71,145.67,8.56502]
[1728721303205,4.64,145.71,145.67,8.56502]
[1728721303410,2.1434,145.78,145.7,8.44]
[1728721303710,8.44,145.75,145.7,8.44]
[1728721303903,4.64,145.74,145.7,8.44]
[1728721304098,8.44,145.75,145.7,8.44]
[1728721304302,4.64,145.74,145.7,8.44]
[1728721304909,16.5115,145.75,145.7,8.44]
[1728721305099,8.0715,145.75,145.7,8.44]
[1728721305305,16.5115,145.75,145.7,8.44]
[1728721307304,8.44,145.74,145.7,8.44]
[1728721310417,8.44,145.74,145.69,9.8078]
[1728721310614,11.8716,145.74,145.69,9.8078]
[1728721312313,11.8716,145.74,145.7,8.44]
[1728721315220,3.4316,145.74,145.7,8.44]
[1728721315420,11.8716,145.74,145.7,8.44]
[1728721322639,11.8716,145.74,145.69,9.8078]
[1728721324726,8.44,145.73,145.69,1.3678]
[1728721324934,11.8718,145.73,145.68,1.4069]
[1728721330739,8.44,145.72,145.67,8.56502]
[1728721331248,13.08,145.72,145.67,8.56502]
[1728721331640,16.5122,145.72,145.67,8.56502]
[1728721333644,13.08,145.72,145.67,8.56502]
[1728721334040,4.64,145.72,145.69,8.44]
[1728721336849,16.5117,145.74,145.69,8.44]
[1728721340552,16.5117,145.74,145.68,8.44]
[1728721340553,8.44,145.73,145.68,8.44]
[1728721342257,8.0717,145.74,145.68,8.44]
[1728721342648,8.44,145.73,145.68,8.44]
[1728721343756,8.0717,145.74,145.68,8.44]
[1728721344058,8.44,145.73,145.68,8.44]
[1728721344567,8.0717,145.74,145.68,8.44]
[1728721344761,16.5117,145.74,145.68,8.44]
[1728721345553,8.44,145.72,145.67,0.12502]
[1728721347267,8.44,145.72,145.67,8.56502]
[1728721351155,3.4319,145.73,145.67,8.56502]
[1728721351456,8.44,145.72,145.67,8.56502]
[1728721365667,8.44,145.71,145.67,0.12502]
[1728721378584,8.44,145.7,145.67,0.12502]
[1728721378787,8.44,145.69,145.67,0.12502]
[1728721380489,8.44,145.68,145.67,0.12502]
[1728721408115,11.873,145.68,145.67,0.12502]
[1728721410114,8.44,145.68,145.67,0.12502]
[1728721410406,11.8732,145.68,145.67,0.12502]
[1728721410610,8.44,145.68,145.61,0.12502]
[1728721410812,8.44,145.64,145.61,0.12502]
[1728721421715,4.64,145.66,145.61,8.56502]
[1728721422016,13.08,145.66,145.61,8.56502]
[1728721424813,13.08,145.66,145.63,3.4344]
[1728721426908,13.08,145.66,145.64,3.4342]
[1728721433024,8.44,145.66,145.64,3.4342]
[1728721440432,8.0734,145.68,145.64,3.4342]
[1728721440637,8.44,145.66,145.64,3.4342]
[1728721442328,8.44,145.66,145.62,4.87470799]
[1728721442929,8.44,145.66,145.63,3.4344]
[1728721443134,8.0735,145.68,145.63,3.4344]
[1728721443135,8.44,145.65,145.63,3.4344]
[1728721446140,8.44,145.65,145.62,1.3753]
[1728721447244,0.87012,145.73,145.62,4.7812897]
[1728721447444,8.44,145.68,145.63,8.44]
[1728721447640,0.87012,145.73,145.63,8.44]
[1728721447641,13.08,145.69,145.64,3.35447226]
[1728721448242,13.08,145.69,145.64,8.44]
[1728721448436,8.44,145.69,145.64,8.44]
[1728721451846,8.44,145.69,145.63,13.23089074]
[1728721452045,8.44,145.68,145.63,9.7332]
[1728721452648,8.44,145.68,145.63,13.21313141]
[1728721454652,8.0729,145.7,145.63,13.21313141]
[1728721454853,8.44,145.68,145.65,3.4339]
[1728721464154,8.44,145.68,145.64,3.4342]
[1728721464754,11.8731,145.69,145.64,3.4342]
[1728721470061,13.08,145.7,145.64,8.44]
[1728721470259,8.073,145.7,145.66,3.4338]
[1728721470865,3.4327,145.71,145.67,3.4334]
[1728721471056,0.12502,145.73,145.68,8.44]
[1728721471253,4.64,145.72,145.68,8.44]
[1728721471457,4.64,145.72,145.69,3.4331]
[1728721472357,4.64,145.72,145.69,3.433]
[1728721472558,4.64,145.72,145.7,8.44]
[1728721473162,4.64,145.72,145.7,11.8728]
[1728721476464,4.64,145.72,145.7,8.44]
[1728721477667,4.64,145.72,145.71,8.44]
[1728721478272,0.12502,145.73,145.71,8.44]
[1728721481373,0.12502,145.73,145.71,11.8726]
[1728721483377,0.12502,145.73,145.71,15.22340934]
[1728721488384,3.55722,145.73,145.71,8.44]
[1728721488585,0.12502,145.73,145.71,8.44]
[1728721489681,0.12502,145.73,145.71,11.90466602]
[1728721489883,0.12502,145.73,145.71,15.33726602]
[1728721490185,0.12502,145.73,145.71,11.90466602]
[1728721491277,0.12502,145.73,145.71,11.8725]
[1728721491582,0.12502,145.73,145.71,15.38728901]
[1728721492982,0.12502,145.73,145.71,11.8725]
[1728721496082,0.12502,145.73,145.71,15.26793188]
[1728721496787,0.12502,145.73,145.71,11.8725]
[1728721496988,0.12502,145.73,145.71,15.32422493]
[1728721500985,0.12502,145.73,145.72,11.8724]
[1728721502099,0.12502,145.73,145.71,3.34908462]
[1728721502298,0.12502,145.73,145.7,8.44]
[1728721502702,0.12502,145.73,145.71,3.4325]
[1728721504302,3.55722,145.73,145.7,3.4328]
[1728721504494,0.12502,145.73,145.7,8.44]
[1728721505303,0.12502,145.73,145.71,3.48056262]
[1728721505499,0.12502,145.73,145.71,6.91316262]
[1728721505905,0.12502,145.73,145.71,15.35316262]
[1728721508107,0.12502,145.73,145.71,11.92056262]
[1728721508304,0.12502,145.73,145.72,3.4324]
[1728721516911,0.12502,145.73,145.71,3.4325]
[1728721517612,0.12502,145.73,145.71,6.83616687]
[1728721518915,0.12502,145.73,145.72,8.44]
[1728721532724,0.12502,145.73,145.71,3.4325]
[1728721532725,3.55722,145.73,145.7,3.4328]
[1728721535122,3.55722,145.73,145.7,11.8728]
[1728721535317,3.55722,145.73,145.7,8.44]
[1728721536221,0.12502,145.73,145.72,8.44]
[1728721560343,3.55722,145.73,145.72,8.44]
[1728721560534,0.12502,145.73,145.7,11.8728]
[1728721561432,3.4324,145.72,145.7,11.8728]
[1728721561639,0.12502,145.73,145.7,11.8728]
[1728721562535,3.55722,145.73,145.7,11.8728]
[1728721566351,3.55722,145.73,145.72,8.44]
[1728721578654,0.12502,145.73,145.72,8.44]
[1728721587351,0.12502,145.73,145.72,11.8724]
[1728721590252,0.12502,145.73,145.72,8.44]
[1728721592753,0.12502,145.73,145.72,1.57]
[1728721609075,0.12502,145.73,145.72,5.0024]
[1728721611877,0.12502,145.73,145.71,3.45447299]
[1728721612076,0.12502,145.73,145.72,8.44]
[1728721612277,0.12502,145.73,145.72,11.89848647]
[1728721620591,0.12502,145.73,145.72,3.45848647]
[1728721620791,0.12502,145.73,145.71,11.8725]
[1728721621392,0.12502,145.73,145.71,15.31770317]
[1728721627897,0.12502,145.73,145.71,3.44520317]
[1728721628097,0.12502,145.73,145.69,2.6967]
[1728721628398,0.12502,145.73,145.7,8.44]
[1728721628588,3.4324,145.72,145.71,8.44]
[1728721630589,8.44,145.72,145.63,8.44]
[1728721630795,8.44,145.68,145.64,3.42896249]
[1728721631195,3.4336,145.67,145.64,3.42896249]
[1728721631389,8.44,145.68,145.64,3.42896249]
[1728721631595,3.4337,145.67,145.64,3.42896249]
[1728721631796,3.4337,145.67,145.63,8.44]
[1728721632295,3.4337,145.67,145.63,11.80684331]
[1728721632491,3.4337,145.67,145.64,8.44]
[1728721633189,8.44,145.71,145.66,8.44]
[1728721633398,3.4334,145.68,145.66,8.44]
[1728721637793,4.76502,145.73,145.67,8.44]
[1728721637996,8.44,145.72,145.67,8.44]
[1728721638393,3.4329,145.7,145.67,8.44]
[1728721639505,3.4329,145.7,145.67,11.8735]
[1728721663832,3.4329,145.7,145.67,3.4335]
[1728721664037,3.4329,145.7,145.67,11.8735]
[1728721664425,3.4329,145.7,145.67,3.4335]
[1728721664627,3.4329,145.7,145.67,11.8735]
[1728721670940,3.4327,145.71,145.69,8.44]
[1728721671143,4.80502,145.73,145.7,8.44]
[1728721671334,4.80502,145.73,145.69,1.3635]
[1728721671335,0.12502,145.73,145.72,8.44]
[1728721677839,0.12502,145.73,145.71,11.8726]
[1728721678550,3.55732,145.73,145.71,8.44]